bitfinex/quotes_BTCUSD_20220202
["timestamp","ask_amount","ask_price","bid_price","bid_amount"]
[1643822687967,0.80078991,37448.0,37443.0,0.133552]
[1643822688166,0.80078991,37448.0,37444.0,0.00057373]
[1643822689168,0.80078991,37448.0,37443.0,0.133552]
[1643822689368,0.80078991,37448.0,37444.0,0.00057373]
[1643822689821,0.80078991,37448.0,37444.0,0.00045318]
[1643822689822,0.353975,37447.0,37444.0,0.00045318]
[1643822690021,0.353975,37447.0,37439.0,0.02098613]
[1643822690022,1.65,37445.0,37439.0,0.08766639]
[1643822690321,0.33939051,37442.0,37439.0,0.02087339]
[1643822690517,1.76060447,37440.0,37439.0,0.04281743]
[1643822690716,3.4783534,37440.0,37439.0,0.02194404]
[1643822690918,3.5283534,37440.0,37439.0,0.02194404]
[1643822692718,3.5283534,37440.0,37438.0,0.00011274]
[1643822692917,0.353975,37439.0,37438.0,0.00014008]
[1643822693120,1.48363062,37439.0,37438.0,0.00014008]
[1643822693317,1.20460706,37439.0,37438.0,0.00014008]
[1643822693587,1.15460706,37439.0,37438.0,0.00014008]
[1643822693988,0.80063206,37439.0,37436.0,0.00011274]
[1643822694384,0.80063206,37439.0,37437.0,0.0004658]
[1643822695184,0.80063206,37439.0,37436.0,0.20974337]
[1643822695383,0.80063206,37439.0,37436.0,0.21027595]
[1643822696382,0.80063206,37439.0,37436.0,0.20974337]
[1643822696591,0.80063206,37439.0,37438.0,1.10531988]
[1643822696786,0.80063206,37439.0,37438.0,1.35974404]
[1643822696987,0.80063206,37439.0,37438.0,1.26811188]
[1643822697215,0.80063206,37439.0,37438.0,1.36811188]
[1643822697415,0.80063206,37439.0,37438.0,0.51811188]
[1643822697622,0.80063206,37439.0,37438.0,0.58489088]
[1643822697819,0.80063206,37439.0,37438.0,0.229571]
[1643822698019,0.80063206,37439.0,37438.0,0.329571]
[1643822699416,0.80063206,37439.0,37438.0,0.879571]
[1643822699817,0.80063206,37439.0,37438.0,0.329571]
[1643822700020,0.80063206,37439.0,37438.0,0.120179]
[1643822700218,0.80063206,37439.0,37438.0,0.58588346]
[1643822700417,0.80063206,37439.0,37438.0,0.329571]
[1643822700619,0.80063206,37439.0,37438.0,0.229571]
[1643822700825,0.80063206,37439.0,37438.0,0.120179]
[1643822701265,0.80063206,37439.0,37438.0,0.0534]
[1643822702266,0.80063206,37439.0,37438.0,0.73703315]
[1643822702465,0.80063206,37439.0,37438.0,0.38703315]
[1643822703264,0.80063206,37439.0,37438.0,0.99642515]
[1643822703463,0.80063206,37439.0,37438.0,0.49642515]
[1643822703664,0.80063206,37439.0,37438.0,0.5818695]
[1643822704266,0.80085228,37439.0,37438.0,0.9318695]
[1643822704468,0.80085228,37439.0,37438.0,0.5818695]
[1643822704725,0.80085228,37439.0,37438.0,0.262792]
[1643822705018,0.80085228,37439.0,37438.0,0.162792]
[1643822705217,0.80085228,37439.0,37438.0,0.0534]
[1643822705623,1.04507015,37439.0,37438.0,0.0534]
[1643822705825,1.04507015,37439.0,37436.0,0.00011274]
[1643822706019,0.2115938,37437.0,37436.0,0.00011274]
[1643822706318,0.5655688,37437.0,37435.0,0.066799]
[1643822706521,0.5655688,37437.0,37434.0,0.00011274]
[1643822706522,0.353975,37436.0,37434.0,0.00011274]
[1643822706719,0.353975,37436.0,37433.0,0.02198445]
[1643822706917,0.353975,37436.0,37432.0,0.00011274]
[1643822707420,0.24986043,37432.0,37431.0,0.01861086]
[1643822707818,0.24986043,37432.0,37431.0,0.01849812]
[1643822708874,0.24986043,37432.0,37430.0,0.13417625]
[1643822709075,0.24986043,37432.0,37430.0,0.13406351]
[1643822709276,1.15,37430.0,37428.0,0.00011274]
[1643822709477,1.15,37430.0,37426.0,0.02013686]
[1643822709478,1.403975,37429.0,37426.0,0.02013686]
[1643822709679,0.353975,37428.0,37426.0,0.02013686]
[1643822709873,1.75063206,37427.0,37426.0,0.02013686]
[1643822710074,2.10460706,37427.0,37426.0,0.02013686]
[1643822710272,1.15460706,37427.0,37426.0,0.02013686]
[1643822710873,0.25749421,37425.0,37423.0,0.02]
[1643822711074,0.30701663,37424.0,37423.0,0.02]
[1643822711675,0.54744453,37424.0,37423.0,0.02]
[1643822711875,0.54744453,37424.0,37422.0,0.00011274]
[1643822712073,0.23138123,37423.0,37421.0,0.02199741]
[1643822712319,0.23138123,37423.0,37422.0,0.00016985]
[1643822712718,0.05,37425.0,37422.0,0.00016985]
[1643822712920,0.80063206,37427.0,37422.0,0.06697985]
[1643822713221,0.80063206,37427.0,37422.0,0.06709259]
[1643822713415,0.80063206,37427.0,37422.0,0.06692274]
[1643822713618,0.80063206,37427.0,37423.0,0.000565]
[1643822713818,0.02,37426.0,37423.0,0.000565]
[1643822714016,0.02,37426.0,37424.0,0.109458]
[1643822714217,0.02,37426.0,37425.0,1.05341463]
[1643822714821,0.7864852,37427.0,37425.0,0.10341463]
[1643822715018,0.7864852,37427.0,37424.0,0.06748472]
[1643822715420,0.7864852,37427.0,37424.0,0.06737198]
[1643822715616,0.8064852,37427.0,37424.0,0.06737198]
[1643822715965,0.8064852,37427.0,37424.0,0.066807]
[1643822716165,0.8064852,37427.0,37424.0,0.06748472]
[1643822716362,0.8064852,37427.0,37426.0,0.28143963]
[1643822716563,0.8064852,37427.0,37425.0,0.1]
[1643822716762,0.8064852,37427.0,37424.0,0.13429172]
[1643822716963,0.8064852,37427.0,37424.0,0.13372674]
[1643822717163,0.8064852,37427.0,37424.0,0.13424831]
[1643822717566,0.8064852,37427.0,37425.0,0.55541634]
[1643822717767,0.8064852,37427.0,37426.0,2.526848]
[1643822717768,0.0514169,37427.0,37426.0,2.526848]
[1643822717964,0.0514169,37427.0,37426.0,2.580248]
[1643822718163,0.0317169,37427.0,37426.0,2.580248]
[1643822718364,0.0317169,37427.0,37426.0,3.3251781]
[1643822718564,0.0002,37427.0,37426.0,2.94034835]
[1643822718766,0.00058956,37442.0,37432.0,0.066784]
[1643822718970,0.002,37450.0,37432.0,0.066784]
[1643822718971,0.06221809,37460.0,37441.0,0.6674]
[1643822719168,0.06221809,37460.0,37442.0,0.36832734]
[1643822719169,0.5,37460.0,37442.0,0.36832734]
[1643822719366,0.5,37460.0,37447.0,0.6674]
[1643822719568,0.5,37460.0,37450.0,0.30585922]
[1643822719824,0.06161108,37461.0,37458.0,0.09065436]
[1643822720020,0.80086,37460.0,37458.0,0.14405436]
[1643822720818,0.80086,37460.0,37459.0,0.859307]
[1643822721017,0.80086,37460.0,37459.0,1.001397]
[1643822721216,0.80086,37460.0,37459.0,1.101397]
[1643822721616,0.80086,37460.0,37459.0,0.351397]
[1643822721817,0.80086,37460.0,37459.0,0.14209]
[1643822722019,0.80086,37460.0,37459.0,0.0534]
[1643822722418,1.05789353,37460.0,37459.0,0.0534]
[1643822723020,1.05789353,37460.0,37455.0,0.04937]
[1643822723218,1.05789353,37460.0,37456.0,0.0534]
[1643822724073,1.07789353,37460.0,37456.0,0.120154]
[1643822724274,1.0781067,37460.0,37456.0,0.120154]
[1643822724474,1.07871008,37460.0,37456.0,0.120154]
[1643822724673,1.12871008,37460.0,37456.0,0.120154]
[1643822724875,0.87167655,37460.0,37456.0,0.120154]
[1643822725076,0.87167655,37460.0,37457.0,0.109301]
[1643822725381,0.2927661,37459.0,37458.0,0.0534]
[1643822725776,0.49406414,37459.0,37458.0,0.0534]
[1643822727077,0.79406414,37459.0,37458.0,0.0534]
[1643822727521,0.49406414,37459.0,37458.0,0.0534]
[1643822729116,0.49427747,37459.0,37458.0,0.0534]
[1643822729716,0.54427747,37459.0,37458.0,0.0534]
[1643822729918,1.14427747,37459.0,37458.0,0.0534]
[1643822730219,1.49825247,37459.0,37458.0,0.0534]
[1643822730615,1.49825247,37459.0,37455.0,0.06937]
[1643822730817,0.353975,37458.0,37455.0,0.06937]
[1643822731068,0.36554124,37457.0,37455.0,0.06937]
[1643822731268,0.41554124,37457.0,37455.0,0.06937]
[1643822731668,0.25673799,37456.0,37455.0,0.04937]
[1643822731866,0.61071299,37456.0,37447.0,0.1]
[1643822732068,0.30673799,37456.0,37447.0,0.1]
[1643822732670,0.24830587,37455.0,37447.0,0.1]
[1643822732866,0.30969083,37451.0,37448.0,0.02]
[1643822733071,0.05,37451.0,37448.0,0.02]
[1643822733565,0.00057525,37453.0,37448.0,0.02]
[1643822733766,0.02,37451.0,37446.0,0.166769]
[1643822733967,0.02,37451.0,37447.0,0.109344]
[1643822734168,0.02057526,37451.0,37447.0,0.109344]
[1643822734820,0.02057526,37451.0,37446.0,0.086769]
[1643822735022,0.02,37451.0,37446.0,0.086769]
[1643822735519,0.02,37451.0,37446.0,0.02]
[1643822735520,0.02057526,37451.0,37446.0,0.02]
[1643822735723,0.02057526,37451.0,37443.0,0.1]
[1643822735724,0.4,37447.0,37443.0,0.1]
[1643822735920,0.28495756,37451.0,37444.0,0.109357]
[1643822736122,0.28495756,37451.0,37443.0,0.1]
[1643822736319,0.2843823,37451.0,37442.0,0.066773]
[1643822736520,0.00057561,37447.0,37444.0,0.07763329]
[1643822736820,0.00057561,37447.0,37445.0,0.109359]
[1643822737019,0.00057561,37447.0,37443.0,0.109365]
[1643822737719,0.02057561,37447.0,37443.0,0.41124122]
[1643822737919,0.02057561,37447.0,37444.0,0.109363]
[1643822738119,0.02057561,37447.0,37444.0,0.209363]
[1643822738322,0.02057561,37447.0,37445.0,0.109359]
[1643822738768,0.25417508,37449.0,37445.0,0.109359]
[1643822738969,0.0005756,37448.0,37445.0,0.109359]
[1643822739471,0.0005756,37448.0,37443.0,0.20115599]
[1643822739669,0.02,37447.0,37445.0,0.29988708]
[1643822739870,0.02,37447.0,37446.0,1.159355]
[1643822740271,0.02057555,37447.0,37446.0,1.259355]
[1643822740670,0.00057555,37447.0,37446.0,1.259355]
[1643822741074,0.00015523,37450.0,37446.0,1.259355]
[1643822741274,0.00015523,37450.0,37447.0,0.47899635]
[1643822741475,0.00057555,37448.0,37447.0,0.36954435]
[1643822741673,0.00057555,37448.0,37447.0,0.47889435]
[1643822741871,0.00057555,37448.0,37447.0,0.97889435]
[1643822742076,0.00057555,37448.0,37447.0,0.70935]
[1643822742327,0.02,37449.0,37447.0,0.70935]
[1643822742523,0.02057554,37449.0,37448.0,0.612746]
[1643822742721,0.00057554,37449.0,37448.0,0.712746]
[1643822743124,0.00057554,37449.0,37448.0,1.01024568]
[1643822743527,0.00015523,37450.0,37448.0,1.01024568]
[1643822743724,0.02073056,37450.0,37449.0,0.709341]
[1643822743925,0.02073056,37450.0,37449.0,0.762741]
[1643822744123,0.02057533,37450.0,37449.0,0.762741]
[1643822744826,0.02057533,37450.0,37449.0,0.262741]
[1643822744827,0.02,37450.0,37449.0,0.262741]
[1643822745629,0.02,37450.0,37449.0,0.109341]
[1643822745833,0.02,37450.0,37448.0,0.109344]
[1643822746069,0.02,37450.0,37445.0,0.166757]
[1643822746070,0.30071538,37449.0,37444.0,0.0534]
[1643822746271,0.35071538,37449.0,37445.0,0.109354]
[1643822746666,0.00043339,37451.0,37445.0,0.109354]
[1643822747066,0.00017882,37454.0,37445.0,0.109354]
[1643822747268,0.06677272,37454.0,37445.0,0.109354]
[1643822747467,0.00060349,37450.0,37445.0,0.109354]
[1643822747868,0.02,37449.0,37445.0,0.109354]
[1643822748571,0.02059537,37449.0,37445.0,0.109354]
[1643822749167,0.0001561,37448.0,37445.0,0.109354]
[1643822749821,0.00075147,37448.0,37445.0,0.109354]
[1643822750020,0.06777,37464.0,37459.0,0.02774644]
[1643822750222,1.22431211,37460.0,37459.0,0.01238959]
[1643822750825,1.22431211,37460.0,37459.0,0.00908959]
[1643822750826,1.17541211,37460.0,37459.0,0.00908959]
[1643822751021,1.46423617,37460.0,37459.0,0.00908959]
[1643822751324,1.51423617,37460.0,37459.0,0.00908959]
[1643822752020,1.46423617,37460.0,37459.0,0.00908959]
[1643822752421,1.46423617,37460.0,37457.0,0.02]
[1643822752422,0.05,37458.0,37457.0,0.02]
[1643822752624,2.053975,37458.0,37457.0,0.02]
[1643822752820,2.003975,37458.0,37447.0,0.03880265]
[1643822753021,0.05,37456.0,37447.0,0.02010959]
[1643822753467,0.21369085,37451.0,37447.0,0.02010959]
[1643822753674,0.05,37449.0,37447.0,0.02010959]
[1643822753873,0.27305172,37449.0,37447.0,0.02010959]
[1643822754873,0.27305172,37449.0,37443.0,0.00052535]
[1643822754874,0.05,37444.0,37443.0,0.00052535]
[1643822755071,1.153975,37444.0,37443.0,0.00052535]
[1643822755470,0.8,37444.0,37441.0,0.45]
[1643822755672,0.82096959,37448.0,37443.0,0.07943428]
[1643822756671,0.02,37447.0,37443.0,0.36257955]
[1643822756874,0.80086,37446.0,37443.0,0.36304722]
[1643822757717,0.80086,37446.0,37443.0,0.41304722]
[1643822757917,0.80086,37446.0,37443.0,0.41257955]
[1643822758118,0.80086,37446.0,37443.0,0.47982923]
[1643822758717,0.80086,37446.0,37443.0,0.42982923]
[1643822759126,0.80086,37446.0,37443.0,0.42936155]
[1643822759321,0.80086,37446.0,37443.0,0.42982923]
[1643822760323,0.80086,37446.0,37443.0,0.42936155]
[1643822760523,0.80086,37446.0,37443.0,0.42983766]
[1643822761571,0.80086,37446.0,37443.0,0.42936155]
[1643822761778,0.80086,37446.0,37443.0,0.42983766]
[1643822762371,0.80086,37446.0,37443.0,0.47983766]
[1643822762572,0.80086,37446.0,37444.0,0.1]
[1643822762772,0.80086,37446.0,37443.0,0.42936155]
[1643822762972,0.80086,37446.0,37443.0,0.42983766]
[1643822763975,0.80086,37446.0,37443.0,0.42936155]
[1643822764176,0.00021318,37445.0,37443.0,0.42983887]
[1643822764821,0.00021318,37445.0,37443.0,0.1466936]
[1643822765022,0.00021318,37445.0,37443.0,0.2466936]
[1643822765222,0.00021318,37445.0,37443.0,0.24621628]
[1643822765620,0.00021318,37445.0,37443.0,0.166782]
[1643822766321,0.00021318,37445.0,37443.0,0.066782]
[1643822767723,0.00021318,37445.0,37443.0,0.116782]
[1643822768122,0.00053673,37450.0,37448.0,0.17892682]
[1643822768574,0.00053673,37450.0,37448.0,0.22892682]
[1643822768773,0.33881584,37451.0,37448.0,0.17892682]
[1643822768974,0.33935261,37451.0,37448.0,0.17892682]
[1643822769872,0.33881584,37451.0,37448.0,0.17892682]
[1643822770272,0.33935261,37451.0,37448.0,0.13308006]
[1643822770473,0.33924136,37451.0,37448.0,0.13308006]
[1643822770674,0.28924136,37451.0,37448.0,0.13308006]
[1643822770874,0.30924136,37451.0,37448.0,0.13308006]
[1643822771073,0.30870459,37451.0,37448.0,0.13308006]
[1643822771475,0.02053696,37451.0,37448.0,0.13308006]
[1643822772434,0.015,37451.0,37448.0,0.13308006]
[1643822772633,0.01553696,37451.0,37448.0,0.13308006]
[1643822772833,0.00053696,37451.0,37448.0,0.13308006]
[1643822773033,0.05053696,37451.0,37448.0,0.13308006]
[1643822773436,0.00053696,37451.0,37448.0,0.13308006]
[1643822773636,0.005,37452.0,37448.0,0.13308006]
[1643822773838,0.00053696,37451.0,37449.0,0.31180162]
[1643822774237,0.00019101,37450.0,37449.0,0.31180162]
[1643822776365,0.01072866,37452.0,37448.0,0.13308006]
[1643822777466,0.01072866,37452.0,37449.0,0.28306433]
[1643822777869,0.00927134,37453.0,37449.0,0.28306433]
[1643822778370,0.00882114,37453.0,37449.0,0.28306433]
[1643822778568,0.00935915,37453.0,37451.0,0.27510248]
[1643822778768,1.14052303,37452.0,37449.0,0.44983433]
[1643822778967,1.14052303,37452.0,37449.0,0.34983433]
[1643822779740,0.00011246,37451.0,37449.0,0.34983433]
[1643822780139,0.00011246,37451.0,37450.0,0.85]
[1643822780339,0.00011246,37451.0,37450.0,0.45384021]
[1643822781138,0.00011246,37451.0,37450.0,0.34449621]
[1643822781340,0.00011246,37451.0,37450.0,0.32949621]
[1643822784191,0.00011246,37451.0,37450.0,0.085]
[1643822784391,0.00011246,37451.0,37449.0,0.27017]
[1643822785594,0.00011246,37451.0,37450.0,0.22942175]
[1643822785793,0.00011246,37451.0,37450.0,0.32942175]
[1643822787095,0.00011246,37451.0,37450.0,0.43875875]
[1643822788320,0.00011246,37451.0,37450.0,0.209337]
[1643822788720,0.00011246,37451.0,37450.0,0.109337]
[1643822788925,0.00011246,37451.0,37450.0,0.209337]
[1643822789330,0.00011246,37451.0,37450.0,0.262737]
[1643822789524,0.00017843,37451.0,37450.0,0.262737]
[1643822795225,0.00017843,37451.0,37450.0,1.262737]
[1643822797021,0.00017843,37451.0,37450.0,0.262737]
[1643822798022,0.00017843,37451.0,37450.0,0.162737]
[1643822801078,0.00017843,37451.0,37450.0,0.157737]
[1643822815075,0.00017843,37451.0,37450.0,0.607737]
[1643822815276,0.00017843,37451.0,37450.0,0.707737]
[1643822815776,0.00017843,37451.0,37450.0,0.257737]
[1643822816977,0.74504961,37452.0,37451.0,0.116759]
[1643822817225,0.74504961,37452.0,37451.0,0.60796327]
[1643822818331,0.74504961,37452.0,37451.0,0.321091]
[1643822818727,0.74504961,37452.0,37451.0,0.171091]
[1643822818930,0.73954961,37452.0,37451.0,0.171091]
[1643822819330,0.73954961,37452.0,37451.0,0.41899185]
[1643822819530,0.73954961,37452.0,37451.0,0.46899185]
[1643822819728,0.73954961,37452.0,37451.0,0.56899185]
[1643822823477,0.73954961,37452.0,37451.0,0.321091]
[1643822824077,0.73973507,37452.0,37451.0,0.321091]
[1643822824478,0.73973507,37452.0,37451.0,0.63386833]
[1643822825826,0.63375778,37452.0,37451.0,0.63386833]
[1643822827627,0.63375778,37452.0,37451.0,0.321091]
[1643822828570,0.63375778,37452.0,37451.0,0.371091]
[1643822831479,0.63375778,37452.0,37451.0,0.424491]
[1643822838481,0.63375778,37452.0,37451.0,0.066759]
[1643822838981,0.86668602,37452.0,37451.0,0.066759]
[1643822841327,0.63375778,37452.0,37451.0,0.066759]
[1643822842126,0.63375778,37452.0,37451.0,0.171091]
[1643822842325,0.63375778,37452.0,37451.0,0.42345693]
[1643822842725,0.63375778,37452.0,37451.0,0.52345693]
[1643822843126,0.63375778,37452.0,37451.0,0.93616979]
[1643822843328,0.63375778,37452.0,37451.0,1.27666327]
[1643822843584,0.63375778,37452.0,37451.0,0.99300348]
[1643822843779,0.63375778,37452.0,37451.0,2.34300348]
[1643822844177,0.63006376,37452.0,37451.0,2.34300348]
[1643822844777,0.00043355,37453.0,37452.0,1.3]
[1643822844978,0.00043355,37453.0,37452.0,1.524476]
[1643822845179,0.00043355,37453.0,37452.0,1.624476]
[1643822845780,0.00882114,37455.0,37452.0,1.624476]
[1643822845978,0.00882114,37455.0,37454.0,0.916752]
[1643822846277,0.00882114,37455.0,37454.0,1.49191884]
[1643822846678,0.00017877,37459.0,37454.0,1.49191884]
[1643822846883,0.01117886,37457.0,37455.0,0.271064]
[1643822847080,0.01117886,37457.0,37456.0,0.624461]
[1643822847326,0.01117886,37457.0,37456.0,0.774461]
[1643822847731,0.01117886,37457.0,37456.0,0.87205435]
[1643822847925,0.00899991,37459.0,37457.0,0.066751]
[1643822848128,0.00882114,37459.0,37458.0,0.224452]
[1643822848328,0.00882114,37459.0,37458.0,0.274452]
[1643822848528,0.00882114,37459.0,37458.0,0.374452]
[1643822848728,0.00127877,37460.0,37458.0,0.374452]
[1643822848928,0.00127877,37460.0,37459.0,0.104297]
[1643822849129,0.0011,37460.0,37459.0,0.157697]
[1643822849330,0.0011,37460.0,37459.0,0.257697]
[1643822849536,0.0011,37460.0,37459.0,0.307697]
[1643822850732,0.0011,37460.0,37459.0,0.257697]
[1643822851375,0.0011,37460.0,37459.0,0.157697]
[1643822852777,0.00079938,37460.0,37459.0,0.157697]
[1643822852976,0.0006496,37460.0,37459.0,0.157697]
[1643822853177,0.0006496,37460.0,37459.0,0.0534]
[1643822854179,0.00083083,37460.0,37459.0,0.0534]
[1643822856633,0.00083083,37460.0,37459.0,0.157696]
[1643822856833,0.00083083,37460.0,37459.0,0.257696]
[1643822859078,0.00083083,37460.0,37459.0,0.53056159]
[1643822859479,0.00083083,37460.0,37459.0,0.307696]
[1643822859879,0.00083083,37460.0,37459.0,0.257696]
[1643822860279,0.00083083,37460.0,37459.0,0.157696]
[1643822860681,0.00083083,37460.0,37459.0,0.257696]
[1643822861082,0.00083083,37460.0,37459.0,0.307696]
[1643822861581,0.00083083,37460.0,37459.0,1.357696]
[1643822861781,0.21415923,37466.0,37464.0,0.24471191]
[1643822862082,0.001,37466.0,37464.0,0.4354749]
[1643822862337,0.001,37466.0,37465.0,0.1]
[1643822863737,0.001,37466.0,37464.0,0.05]
[1643822863937,0.001,37466.0,37463.0,0.170141]
[1643822864139,0.001,37466.0,37463.0,0.270141]
[1643822864539,0.36049903,37468.0,37463.0,0.270141]
[1643822864839,0.33929903,37467.0,37463.0,0.270141]
[1643822865037,0.30751241,37466.0,37463.0,0.166741]
[1643822865646,0.64681144,37466.0,37462.0,0.01813816]
[1643822865840,0.33929903,37464.0,37462.0,0.01813816]
[1643822866118,2.71370411,37463.0,37462.0,0.02]
[1643822866315,2.37440508,37463.0,37462.0,0.02]
[1643822866516,3.8486034,37463.0,37462.0,0.02]
[1643822866712,4.02209542,37463.0,37462.0,0.02]
[1643822866913,4.02209542,37463.0,37455.0,0.133525]
[1643822867112,0.31273633,37456.0,37455.0,0.133525]
[1643822868912,0.56001048,37456.0,37455.0,0.133525]
[1643822869113,0.56078253,37456.0,37455.0,0.133525]
[1643822869411,0.3122868,37456.0,37455.0,0.133525]
[1643822870029,0.3122868,37456.0,37454.0,0.066762]
[1643822870230,0.24045851,37455.0,37454.0,0.066762]
[1643822870830,0.3122868,37456.0,37454.0,0.066762]
[1643822871431,0.02,37458.0,37454.0,0.066762]
[1643822872232,0.086765,37458.0,37454.0,0.066762]
[1643822872632,0.29447662,37456.0,37454.0,0.066762]
[1643822873040,0.29447662,37456.0,37453.0,0.02]
[1643822873041,0.353972,37455.0,37453.0,0.02]
[1643822873235,1.98936969,37454.0,37453.0,0.02]
[1643822873486,2.804772,37454.0,37453.0,0.02]
[1643822873683,3.40038661,37454.0,37453.0,0.02]
[1643822873884,3.40038661,37454.0,37444.0,0.39069896]
[1643822874084,3.40038661,37454.0,37447.0,0.00014111]
[1643822874085,0.24189842,37448.0,37447.0,0.00014111]
[1643822874284,2.60704492,37454.0,37447.0,0.00014111]
[1643822874484,2.67382592,37454.0,37447.0,0.00014111]
[1643822874886,2.67382392,37454.0,37448.0,0.02]
[1643822875285,0.26733389,37453.0,37448.0,0.02]
[1643822875885,0.28733389,37453.0,37448.0,0.02]
[1643822876285,0.28792946,37453.0,37448.0,0.02]
[1643822877328,0.28733389,37453.0,37448.0,0.02]
[1643822877528,0.28788785,37453.0,37448.0,0.02]
[1643822878527,0.28733389,37453.0,37448.0,0.02]
[1643822878727,0.28788785,37453.0,37448.0,0.02]
[1643822879128,0.00011058,37452.0,37448.0,0.02]
[1643822879330,0.06689058,37452.0,37448.0,0.02]
[1643822879728,0.27267324,37451.0,37448.0,0.02]
[1643822879929,0.27267324,37451.0,37447.0,0.11724829]
[1643822880981,0.27267324,37451.0,37447.0,0.116778]
[1643822881977,0.57081157,37451.0,37447.0,0.116778]
[1643822882182,0.57081157,37451.0,37447.0,0.11724829]
[1643822882380,0.27267324,37451.0,37449.0,0.26232694]
[1643822884081,0.00011005,37450.0,37449.0,0.26232694]
[1643822884728,0.00011005,37450.0,37449.0,0.31232694]
[1643822885531,0.00011005,37450.0,37449.0,0.85207723]
[1643822885733,0.00011005,37450.0,37449.0,0.58343594]
[1643822886134,0.00011005,37450.0,37449.0,1.45646427]
[1643822886332,0.00011005,37450.0,37449.0,1.76520484]
[1643822887133,0.00011005,37450.0,37449.0,1.16520484]
[1643822887332,0.00011005,37450.0,37449.0,1.15543436]
[1643822887533,0.00011005,37450.0,37449.0,1.20883436]
[1643822888686,0.00011005,37450.0,37449.0,1.25883436]
[1643822889882,0.00011005,37450.0,37449.0,0.99557651]
[1643822890085,0.00011005,37450.0,37449.0,0.374509]
[1643822890283,0.00011005,37450.0,37449.0,0.324509]
[1643822890685,0.00011005,37450.0,37449.0,0.1534]
[1643822890883,0.00011005,37450.0,37449.0,0.0534]
[1643822891485,0.00011005,37450.0,37448.0,0.066772]
[1643822892930,0.60005286,37453.0,37448.0,0.066772]
[1643822893131,0.3290014,37453.0,37448.0,0.066772]
[1643822893938,0.3240014,37453.0,37448.0,0.066772]
[1643822894432,9.877e-05,37449.0,37447.0,0.116778]
[1643822894633,9.877e-05,37449.0,37448.0,0.104344]
[1643822894832,1.08562354,37454.0,37447.0,0.11694542]
[1643822894833,1.08364838,37454.0,37447.0,0.11694542]
[1643822895634,1.33639202,37454.0,37447.0,0.62965357]
[1643822895834,0.02,37453.0,37448.0,0.02]
[1643822896079,0.02060087,37453.0,37448.0,0.02]
[1643822896879,0.02,37453.0,37448.0,0.02]
[1643822897278,0.02060087,37453.0,37448.0,0.02]
[1643822898278,0.02119987,37453.0,37448.0,0.02]
[1643822898478,0.020599,37453.0,37448.0,0.02]
[1643822899083,0.23643872,37452.0,37448.0,0.02]
[1643822899480,0.2366104,37452.0,37448.0,0.02]
[1643822900930,0.00017168,37452.0,37448.0,0.086771]
[1643822901332,0.02044934,37453.0,37448.0,0.086771]
[1643822901735,0.01985035,37453.0,37448.0,0.086771]
[1643822901935,0.02045591,37453.0,37448.0,0.086771]
[1643822902331,0.25399923,37453.0,37448.0,0.086771]
[1643822902731,0.25551396,37453.0,37448.0,0.086771]
[1643822902933,0.01985035,37453.0,37448.0,0.086771]
[1643822903134,0.02045591,37453.0,37448.0,0.086771]
[1643822904079,0.01985035,37453.0,37448.0,0.086771]
[1643822904383,0.02045591,37453.0,37448.0,0.086771]
[1643822904580,0.25563276,37453.0,37448.0,0.086771]
[1643822905379,0.01985035,37453.0,37448.0,0.086771]
[1643822905581,0.02045591,37453.0,37448.0,0.086771]
[1643822906580,0.01985035,37453.0,37448.0,0.086771]
[1643822906780,0.02028383,37453.0,37448.0,0.086771]
[1643822907430,0.02028383,37453.0,37448.0,0.15354036]
[1643822907832,0.02071731,37453.0,37448.0,0.15354036]
[1643822908031,0.02028383,37453.0,37448.0,0.15354036]
[1643822908835,0.01985035,37453.0,37448.0,0.15354036]
[1643822909233,0.02045564,37453.0,37448.0,0.15354036]
[1643822910034,0.01985035,37453.0,37448.0,0.15354036]
[1643822910235,0.01985035,37453.0,37452.0,0.36571815]
[1643822910435,0.02045564,37453.0,37452.0,0.36571815]
[1643822911083,0.02045564,37453.0,37452.0,0.78203912]
[1643822911283,0.01985035,37453.0,37452.0,0.67345115]
[1643822911484,0.01985035,37453.0,37452.0,0.92499273]
[1643822911886,0.01985035,37453.0,37452.0,0.97499273]
[1643822912086,0.01985035,37453.0,37452.0,1.24303248]
[1643822912483,0.79882484,37454.0,37452.0,1.24303248]
[1643822912686,0.79882484,37454.0,37453.0,0.454324]
[1643822912884,0.79925859,37454.0,37453.0,0.554324]
[1643822913086,0.79925859,37454.0,37453.0,0.65132634]
[1643822913286,0.79925859,37454.0,37453.0,0.71808034]
[1643822914187,0.79882484,37454.0,37453.0,0.71808034]
[1643822915737,0.79882484,37454.0,37453.0,0.77148034]
[1643822916835,0.74882484,37454.0,37453.0,0.77148034]
[1643822917034,0.74882484,37454.0,37453.0,0.324478]
[1643822918783,0.74882484,37454.0,37453.0,0.224478]
[1643822918983,0.74882484,37454.0,37453.0,0.171078]
[1643822919384,0.74882484,37454.0,37453.0,0.066754]
[1643822920386,0.74882484,37454.0,37453.0,0.171077]
[1643822920988,0.74882484,37454.0,37453.0,0.30275421]
[1643822921387,0.74882484,37454.0,37453.0,0.40275421]
[1643822923127,0.74882484,37454.0,37453.0,0.45275421]
[1643822923328,0.74882484,37454.0,37453.0,0.50615421]
[1643822923729,0.74882484,37454.0,37453.0,1.40615421]
[1643822925130,0.74882484,37454.0,37453.0,1.90615421]
[1643822931236,0.74882484,37454.0,37453.0,1.40615421]
[1643822932136,0.74882484,37454.0,37453.0,1.90615421]
[1643822933340,0.74882484,37454.0,37453.0,1.00615421]
[1643822933584,0.74882484,37454.0,37453.0,1.35615421]
[1643822934189,0.74898696,37454.0,37453.0,1.35615421]
[1643822935588,0.74898696,37454.0,37453.0,1.00615421]
[1643822936789,0.7486656,37454.0,37453.0,1.00615421]
[1643822936990,0.7486656,37454.0,37453.0,0.50615421]
[1643822937232,0.7486656,37454.0,37453.0,0.424477]
[1643822938237,0.74842285,37454.0,37453.0,0.424477]
[1643822938836,0.74842285,37454.0,37453.0,0.374477]
[1643822941582,0.74842285,37454.0,37453.0,0.724477]
[1643822941781,0.74842285,37454.0,37453.0,0.424477]
[1643822942786,0.94862675,37454.0,37453.0,0.066754]
[1643822942995,0.94862675,37454.0,37451.0,0.066767]
[1643822942996,1.21655353,37454.0,37451.0,0.066767]
[1643822943190,0.26792678,37452.0,37448.0,0.08688181]
[1643822943489,0.74826073,37451.0,37448.0,0.02011081]
[1643822943690,0.353972,37450.0,37448.0,0.02011081]